bitfinex/quotes_SOLUSD_20220119
["timestamp","ask_amount","ask_price","bid_price","bid_amount"]
[1642579413071,38.03097914,134.16,134.07,0.02]
[1642579413373,1.7738939,134.15,134.07,0.02]
[1642579413571,44.32577925,134.13,134.07,0.02]
[1642579413768,11.1896,134.12,134.07,0.02]
[1642579413969,2.982,134.15,134.07,0.02]
[1642579414168,2.982,134.2,134.07,0.02]
[1642579414371,2.981,134.23,134.07,1.6194122]
[1642579414570,2.981,134.24,134.08,6.0]
[1642579414770,11.1856,134.17,134.08,17.4345]
[1642579414970,29.28916492,134.16,134.09,39.66529961]
[1642579415171,11.1856,134.17,134.1,0.25]
[1642579415771,11.1856,134.17,134.1,6.25]
[1642579417673,11.1856,134.17,134.1,6.0]
[1642579418074,11.1856,134.17,134.09,39.66529961]
[1642579418677,11.1833,134.19,134.09,50.84929961]
[1642579418877,2.982,134.24,134.1,6.0]
[1642579419074,2.982,134.24,134.11,74.03]
[1642579419275,2.981,134.25,134.12,0.25]
[1642579419477,36.61476893,134.24,134.12,42.15469749]
[1642579419677,42.61476893,134.24,134.12,67.05930969]
[1642579419878,42.61476893,134.24,134.12,65.45989749]
[1642579420179,42.61476893,134.24,134.12,65.71989749]
[1642579420378,42.61476893,134.24,134.12,65.45989749]
[1642579420578,11.18,134.23,134.12,29.3052]
[1642579420778,14.161,134.23,134.12,6.0]
[1642579420978,1.7738939,134.22,134.12,6.0]
[1642579421178,2.981,134.21,134.11,6.0]
[1642579421581,34.98609556,134.2,134.11,6.0]
[1642579421980,34.73609556,134.2,134.12,0.25]
[1642579422179,34.73609556,134.2,134.11,6.0]
[1642579422180,11.1842,134.19,134.11,6.0]
[1642579422379,11.4342,134.19,134.11,6.0]
[1642579422580,11.4342,134.19,134.08,6.0]
[1642579423184,11.4342,134.19,134.09,37.47975998]
[1642579423382,14.4162,134.19,134.09,37.47975998]
[1642579423583,14.4162,134.19,134.1,6.0]
[1642579423784,11.4342,134.19,134.1,6.0]
[1642579424083,11.1818,134.2,134.11,0.25]
[1642579424291,6.0,134.24,134.11,0.25]
[1642579424481,2.981,134.23,134.11,11.4324]
[1642579424683,6.0,134.26,134.12,74.03]
[1642579424883,2.98,134.25,134.12,80.03]
[1642579425081,17.1784,134.24,134.13,44.11630824]
[1642579425282,17.1784,134.24,134.13,45.71705088]
[1642579425283,6.0,134.24,134.13,45.71705088]
[1642579425681,6.0,134.24,134.14,1.60074264]
[1642579425886,6.0,134.24,134.15,11.1786]
[1642579426083,6.0,134.24,134.16,37.60209925]
[1642579426282,6.0,134.24,134.17,0.25]
[1642579426283,17.1784,134.24,134.17,0.25]
[1642579426483,18.9522939,134.24,134.17,0.25]
[1642579426684,2.98,134.23,134.12,6.0]
[1642579426882,2.98,134.23,134.09,11.1837]
[1642579427083,1.7738939,134.22,134.1,6.0]
[1642579427283,24.67159428,134.2,134.1,6.0]
[1642579427484,2.981,134.19,134.1,6.0]
[1642579427685,2.981,134.19,134.09,6.0]
[1642579428084,2.981,134.19,134.1,0.25]
[1642579429585,45.24497944,134.16,134.09,15.9343]
[1642579431287,45.24497944,134.16,134.1,0.25]
[1642579433293,45.24497944,134.16,134.1,11.4333]
[1642579433490,3.232,134.21,134.1,11.4333]
[1642579433686,2.981,134.22,134.1,85.4633]
[1642579433888,8.981,134.24,134.11,6.0]
[1642579434293,8.981,134.24,134.12,0.25]
[1642579434491,48.90848263,134.23,134.12,48.37063037]
[1642579434890,48.90848263,134.23,134.13,6.0]
[1642579435294,48.90848263,134.23,134.14,0.25]
[1642579435492,2.98,134.22,134.14,0.25]
[1642579436395,4.7538939,134.22,134.14,0.25]
[1642579436594,0.25,134.21,134.13,0.25]
[1642579436896,11.184,134.18,134.11,23.8691]
[1642579437194,11.184,134.18,134.1,11.1835]
[1642579437693,22.44238186,134.17,134.1,11.1835]
[1642579437895,33.62678186,134.17,134.08,36.1215]
[1642579438319,33.62678186,134.17,134.09,0.25]
[1642579438718,33.62678186,134.17,134.07,22.7779]
[1642579439722,11.1881,134.14,134.07,22.7779]
[1642579439923,36.18843605,134.13,134.07,0.02]
[1642579440424,3.232,134.16,134.07,0.02]
[1642579441023,4.7558939,134.19,134.07,0.02]
[1642579441226,0.25,134.18,134.07,0.02]
[1642579441425,2.982,134.17,134.07,44.63818832]
[1642579441626,2.982,134.17,134.07,0.27]
[1642579441824,11.1859,134.15,134.07,0.02]
[1642579442026,14.1679,134.15,134.07,0.02]
[1642579442625,33.72938841,134.14,134.07,0.02]
[1642579443023,11.1878,134.13,134.07,0.02]
[1642579443926,11.1878,134.13,134.07,0.27]
[1642579444128,11.1878,134.13,134.07,0.02]
[1642579444530,14.1698,134.13,134.07,0.02]
[1642579445127,11.1878,134.13,134.07,0.02]
[1642579445929,11.1866,134.15,134.07,0.02]
[1642579446127,2.982,134.19,134.07,0.02]
[1642579446328,2.982,134.21,134.08,1.61331186]
[1642579446529,37.2776,134.22,134.09,6.0]
[1642579446729,38.85539146,134.2,134.09,46.30946594]
[1642579447133,11.1845,134.17,134.09,40.30946594]
[1642579447431,32.49547303,134.16,134.09,40.30946594]
[1642579447629,32.49547303,134.16,134.09,0.25]
[1642579447928,32.49547303,134.16,134.09,11.4341]
[1642579448129,43.68077303,134.16,134.09,0.25]
[1642579449031,43.68077303,134.16,134.09,11.4346]
[1642579449330,2.982,134.18,134.09,11.4346]
[1642579449530,2.982,134.21,134.1,6.0]
[1642579449733,2.981,134.22,134.11,0.25]
[1642579449932,2.981,134.23,134.11,0.25]
[1642579450132,45.73592202,134.22,134.11,68.70524203]
[1642579450533,11.1825,134.2,134.12,17.1817]
[1642579450734,25.61494247,134.19,134.13,0.25]
[1642579451533,11.1832,134.19,134.13,0.25]
[1642579451832,40.2587,134.22,134.13,0.25]
[1642579452437,11.1818,134.2,134.11,22.6403]
[1642579452638,14.1628,134.2,134.11,22.6403]
[1642579452935,14.1628,134.2,134.08,23.0464]
[1642579453139,15.9366939,134.2,134.08,23.0464]
[1642579453338,0.25,134.19,134.08,23.0464]
[1642579453538,2.982,134.18,134.08,23.0464]
[1642579453740,2.982,134.18,134.09,0.25]
[1642579453940,23.96152818,134.17,134.09,42.52722274]
[1642579454343,23.96152818,134.17,134.09,0.25]
[1642579454541,11.1864,134.16,134.09,0.25]
[1642579458241,35.14572818,134.17,134.09,0.25]
[1642579458443,23.96152818,134.17,134.09,0.25]
[1642579459143,23.96152818,134.17,134.09,6.25]
[1642579459543,30.1088,134.2,134.1,74.03]
[1642579459743,30.1088,134.2,134.11,0.25]
[1642579459946,6.0,134.19,134.11,6.25]
[1642579460546,41.76761682,134.18,134.11,45.18024103]
[1642579460847,2.982,134.22,134.12,11.1821]
[1642579461046,4.74819445,134.23,134.13,74.03]
[1642579461245,2.981,134.23,134.13,74.28]
[1642579461446,6.0,134.22,134.13,0.25]
[1642579461846,40.86646237,134.21,134.13,0.25]
[1642579462247,52.04736237,134.21,134.12,0.25]
[1642579463050,52.04736237,134.21,134.12,38.8150285]
[1642579463248,6.0,134.22,134.12,49.9970285]
[1642579463447,6.0,134.22,134.13,74.03]
[1642579463649,6.0,134.23,134.13,80.03]
[1642579463847,6.0,134.23,134.14,0.25]
[1642579464255,46.29546628,134.22,134.14,0.25]
[1642579464448,46.29546628,134.22,134.15,11.1786]
[1642579464647,49.27546628,134.22,134.14,0.25]
[1642579465451,60.45556628,134.22,134.14,0.25]
[1642579466552,29.08149445,134.24,134.14,11.1802]
[1642579466751,24.3333,134.24,134.15,0.25]
[1642579466951,24.3333,134.24,134.13,6.25]
[1642579467351,23.274,134.25,134.13,30.9613]
[1642579467554,2.98,134.26,134.17,11.177]
[1642579467752,1.76719445,134.27,134.18,0.25]
[1642579467951,1.76719445,134.27,134.18,6.25]
[1642579468152,4.74719445,134.28,134.18,6.25]
[1642579468354,34.92403276,134.29,134.18,6.25]
[1642579468552,34.92403276,134.29,134.19,6.0]
[1642579468553,1.28573723,134.29,134.19,6.0]
[1642579468751,1.28573723,134.29,134.21,44.28587343]
[1642579469152,24.5686,134.31,134.22,0.25]
[1642579469356,2.979,134.32,134.22,6.25]
[1642579470553,2.979,134.32,134.23,11.1725]
[1642579470753,2.979,134.32,134.24,43.32582278]
[1642579470952,2.979,134.32,134.24,49.32582278]
[1642579471153,2.979,134.32,134.24,43.32582278]
[1642579471981,2.979,134.32,134.25,11.1709]
[1642579472182,2.978,134.34,134.26,0.25]
[1642579472983,42.75070344,134.36,134.26,0.25]
[1642579473183,45.72870344,134.36,134.27,11.1688]
[1642579473384,45.72870344,134.36,134.27,56.29637118]
[1642579473385,42.75070344,134.36,134.27,56.29637118]
[1642579473583,2.978,134.35,134.28,0.25]
[1642579473783,42.75070344,134.36,134.28,0.25]
[1642579474187,2.977,134.35,134.28,0.25]
[1642579474784,2.977,134.35,134.26,37.89464374]
[1642579475184,2.977,134.35,134.27,6.0]
[1642579475584,14.1464,134.35,134.28,0.25]
[1642579475785,14.1464,134.35,134.27,6.0]
[1642579476185,14.1464,134.35,134.28,0.25]
[1642579476986,0.25,134.34,134.28,0.25]
[1642579477185,28.60016105,134.32,134.27,0.25]
[1642579477792,28.60016105,134.32,134.21,37.2378]
[1642579477991,2.978,134.31,134.22,6.0]
[1642579478195,2.978,134.31,134.17,47.3087]
[1642579478196,0.25,134.3,134.2,6.0]
[1642579478391,2.979,134.29,134.19,6.0]
[1642579478595,2.979,134.29,134.18,6.0]
[1642579478790,38.28258615,134.28,134.19,46.30722926]
[1642579478991,38.28258615,134.28,134.2,6.0]
[1642579479291,14.1556,134.27,134.2,6.0]
[1642579479690,11.1766,134.27,134.21,0.25]
[1642579480493,11.1766,134.27,134.2,6.0]
[1642579481091,2.979,134.3,134.2,6.0]
[1642579481291,4.74619445,134.34,134.2,80.03]
[1642579481492,4.74619445,134.34,134.21,23.7495]
[1642579481692,2.979,134.34,134.22,0.25]
[1642579481893,45.82030949,134.32,134.23,38.28633995]
[1642579482092,48.79830949,134.32,134.23,38.28633995]
[1642579482293,48.79830949,134.32,134.24,0.25]
[1642579483098,48.79830949,134.32,134.24,6.25]
[1642579483493,59.97080949,134.32,134.24,6.25]
[1642579484293,14.1505,134.32,134.24,6.25]
[1642579484493,2.978,134.33,134.24,6.25]
[1642579484792,2.978,134.35,134.24,17.4217]
[1642579484993,23.6551,134.36,134.24,17.4217]
[1642579485292,42.8214687,134.35,134.25,74.03]
[1642579485494,42.8214687,134.35,134.26,47.50564879]
[1642579485700,42.8214687,134.35,134.26,53.75564879]
[1642579486492,53.9910687,134.35,134.26,64.92524879]
[1642579486692,53.9910687,134.35,134.26,6.25]
[1642579486903,2.978,134.34,134.26,6.25]
[1642579487097,2.978,134.34,134.27,6.0]
[1642579487297,2.978,134.34,134.28,0.25]
[1642579487497,43.75,134.27,134.2,74.03]
[1642579487697,43.75,134.27,134.22,11.1736]
[1642579489098,0.0001,134.27,134.22,11.1736]
[1642579489298,0.0001,134.27,134.25,74.03]
[1642579489698,0.0001,134.27,134.26,49.25]
[1642579489899,0.0001,134.27,134.26,0.25]
[1642579490099,0.0001,134.27,134.26,80.28]
[1642579490500,0.0001,134.27,134.26,91.4491]
[1642579491301,0.0001,134.27,134.26,6.0]
[1642579491502,0.0001,134.27,134.25,6.0]
[1642579491802,6.06449994,134.27,134.22,11.1729]
[1642579492204,37.83531274,134.27,134.2,86.48422007]
[1642579492404,6.06449994,134.27,134.21,80.03]
[1642579492604,6.06449994,134.27,134.22,11.1735]
[1642579492806,6.06449994,134.27,134.23,0.25]
[1642579493409,6.06449994,134.27,134.23,42.72947267]
[1642579493605,0.0001,134.27,134.23,53.90207267]
[1642579493805,0.0001,134.27,134.23,11.4226]
[1642579494005,0.0001,134.27,134.24,6.0]
[1642579494207,0.0001,134.27,134.25,0.25]
[1642579494407,0.0001,134.27,134.25,74.28]
[1642579494608,0.0001,134.27,134.26,77.0]
[1642579494808,0.0001,134.27,134.26,174.6102]
[1642579496410,0.0001,134.27,134.26,185.7777]
[1642579496610,0.0001,134.27,134.26,187.39101186]
[1642579498411,0.0001,134.27,134.26,185.7777]
[1642579498614,0.0001,134.27,134.26,114.5177]
[1642579499012,0.0001,134.27,134.26,114.7777]
[1642579499813,4.74619445,134.36,134.27,71.0]
[1642579500012,1.76719445,134.37,134.29,11.1645]
[1642579500212,1.76719445,134.38,134.3,0.25]
[1642579500412,1.76719445,134.38,134.31,74.03]
[1642579500616,1.76719445,134.39,134.33,74.03]
[1642579500913,1.76719445,134.39,134.34,0.25]
[1642579501123,1.76719445,134.4,134.34,17.4124]
[1642579501515,1.76719445,134.4,134.34,19.02571186]
[1642579501717,1.76719445,134.41,134.35,38.59527877]
[1642579501916,1.76719445,134.42,134.35,38.59527877]
[1642579502114,1.76719445,134.43,134.36,6.25]
[1642579502313,1.76719445,134.43,134.36,17.4102]
[1642579502716,1.76719445,134.43,134.36,17.6702]
[1642579503316,2.976,134.42,134.36,6.25]
[1642579503514,2.976,134.43,134.36,6.0]
[1642579503719,43.82503326,134.42,134.36,6.0]
[1642579503915,45.59222771,134.42,134.36,6.0]
[1642579504918,1.76719445,134.42,134.37,0.25]
[1642579505322,2.976,134.43,134.37,74.28]
[1642579505516,1.76719445,134.44,134.38,6.0]
[1642579505720,27.71247265,134.48,134.39,0.25]
[1642579505721,1.76719445,134.45,134.39,0.25]
[1642579505917,4.74219445,134.45,134.39,39.47291632]
[1642579506119,1.76719445,134.45,134.39,39.47291632]
[1642579506816,4.74219445,134.45,134.39,39.47291632]
[1642579507417,2.975,134.45,134.39,39.47291632]
[1642579507617,4.74219445,134.45,134.39,39.47291632]
[1642579507819,2.975,134.45,134.39,39.47291632]
[1642579508019,1.76719445,134.45,134.39,0.25]
[1642579508219,1.76719445,134.45,134.37,0.25]
[1642579508419,2.976,134.44,134.37,0.25]
[1642579508923,2.976,134.44,134.37,42.31677]
[1642579509721,1.76719445,134.45,134.37,42.31677]
[1642579510122,48.166883,134.46,134.37,42.31677]
[1642579510322,1.76719445,134.45,134.37,0.25]
[1642579510523,15.90319445,134.45,134.37,0.25]
[1642579510724,15.90319445,134.45,134.33,74.03]
[1642579510924,1.76719445,134.44,134.33,74.03]
[1642579511122,4.74319445,134.43,134.34,6.25]
[1642579511323,24.95117594,134.42,134.35,36.39100699]
[1642579511530,2.976,134.41,134.36,6.0]
[1642579511722,2.976,134.41,134.37,0.25]
[1642579511930,24.95117594,134.42,134.37,0.25]
[1642579512725,24.95117594,134.42,134.35,0.25]
[1642579513150,1.76719445,134.43,134.35,0.25]
[1642579513355,1.76719445,134.43,134.35,74.28]
[1642579513553,1.76719445,134.44,134.36,6.0]
[1642579513752,1.76719445,134.44,134.37,0.25]
[1642579514155,45.17997746,134.44,134.37,43.44880184]
[1642579514952,1.76719445,134.44,134.37,43.44880184]
[1642579515553,2.976,134.45,134.37,43.70880184]
[1642579515554,4.74319445,134.45,134.37,43.70880184]
[1642579515756,1.76719445,134.45,134.37,43.70880184]
[1642579515956,1.76719445,134.46,134.37,43.70880184]
[1642579516155,1.76719445,134.46,134.39,74.03]
[1642579516355,50.10760175,134.5,134.4,37.47260989]
[1642579516356,1.76719445,134.47,134.4,37.47260989]
[1642579516554,1.76719445,134.47,134.4,43.72260989]
[1642579516758,1.76719445,134.47,134.41,74.03]
[1642579517156,1.76719445,134.47,134.42,0.25]
[1642579519757,1.76719445,134.47,134.41,0.25]
[1642579520257,25.98545719,134.47,134.41,0.25]
[1642579520458,25.98545719,134.47,134.4,6.0]
[1642579520668,1.76719445,134.45,134.39,6.0]
[1642579520864,1.76719445,134.45,134.35,6.0]
[1642579521065,2.976,134.44,134.32,6.0]
[1642579521266,47.13260175,134.43,134.33,40.30009347]
[1642579521470,48.8997962,134.43,134.33,40.30009347]
[1642579521666,15.90669445,134.42,134.34,6.0]
[1642579521865,1.76719445,134.41,134.34,6.25]
[1642579522068,1.76719445,134.41,134.31,46.1311]
[1642579522266,2.976,134.42,134.29,1.6095416]
[1642579522267,1.76719445,134.4,134.29,1.6095416]
[1642579522466,1.76719445,134.4,134.27,47.4388]
[1642579522866,24.21826274,134.39,134.28,50.50814467]
[1642579523066,1.76719445,134.4,134.28,50.50814467]
[1642579523266,1.76719445,134.4,134.29,24.4987416]
[1642579523471,1.76719445,134.4,134.29,30.4987416]
[1642579523666,1.76719445,134.4,134.29,30.7587416]
[1642579524166,36.56084774,134.4,134.3,74.03]
[1642579524366,36.56084774,134.4,134.31,35.69943683]
[1642579524569,36.56084774,134.4,134.32,74.03]
[1642579524769,36.56084774,134.4,134.33,0.25]
[1642579525167,1.76719445,134.39,134.33,0.25]
[1642579527570,4.74419445,134.39,134.32,0.25]
[1642579527770,1.76719445,134.38,134.32,0.25]
[1642579527970,7.76719445,134.39,134.32,0.25]
[1642579528371,1.76719445,134.38,134.32,0.25]
[1642579528773,1.76719445,134.38,134.31,41.69943683]
[1642579529371,1.76719445,134.38,134.31,115.72943683]
[1642579529574,1.76719445,134.38,134.31,115.98943683]
[1642579529771,4.74419445,134.4,134.31,117.59897843]
[1642579529974,1.76719445,134.4,134.31,117.59897843]
[1642579530773,1.76719445,134.4,134.32,0.25]
[1642579530975,1.76719445,134.41,134.32,0.25]
[1642579531173,1.76719445,134.41,134.34,38.25658251]
[1642579531473,1.76719445,134.42,134.34,38.25658251]
[1642579531673,1.76719445,134.42,134.35,7.8595416]
[1642579532075,1.76719445,134.42,134.35,8.1195416]
[1642579532274,1.76719445,134.42,134.35,6.51]
[1642579532480,1.76719445,134.41,134.35,6.51]
[1642579532975,1.76719445,134.41,134.35,80.29]
[1642579533275,38.11571289,134.4,134.35,80.29]
[1642579533478,38.11571289,134.4,134.35,6.0]
[1642579533775,1.76719445,134.39,134.35,6.0]
[1642579533974,1.76719445,134.39,134.33,6.0]
[1642579534675,1.76719445,134.39,134.34,0.25]
[1642579534875,1.76719445,134.39,134.28,1.6095416]
[1642579535079,4.74419445,134.38,134.29,6.0]
[1642579535276,1.76719445,134.37,134.3,0.25]
[1642579535477,1.76719445,134.36,134.3,0.25]
[1642579535677,37.97934605,134.35,134.3,0.25]
[1642579535878,39.7465405,134.35,134.3,0.25]
[1642579536077,35.00234605,134.35,134.3,0.25]
[1642579536479,35.00234605,134.35,134.29,0.25]
[1642579536677,35.00234605,134.35,134.26,74.03]
[1642579536678,2.978,134.34,134.27,0.25]
[1642579536878,4.74519445,134.34,134.27,0.25]
[1642579537679,4.74519445,134.34,134.26,117.94465232]
[1642579537877,4.74519445,134.34,134.24,23.6569]
[1642579538079,15.91549445,134.34,134.24,23.6569]
[1642579538477,15.91549445,134.34,134.23,74.03]
[1642579538478,1.76719445,134.33,134.23,74.03]
[1642579538677,2.978,134.32,134.23,74.03]
[1642579538879,4.74519445,134.32,134.24,48.98465208]
[1642579539079,1.76719445,134.33,134.24,48.98465208]
[1642579539279,11.1726,134.31,134.24,48.98465208]
[1642579539479,2.978,134.32,134.24,48.98465208]
[1642579539681,1.76719445,134.33,134.25,74.03]
[1642579539880,4.74519445,134.35,134.25,80.03]
[1642579540080,1.76719445,134.36,134.25,81.8995416]
[1642579540285,2.978,134.35,134.25,81.8995416]
[1642579540480,2.978,134.36,134.25,81.8995416]
[1642579540688,4.74519445,134.36,134.26,0.25]
[1642579540883,15.91349445,134.36,134.26,0.25]
[1642579543183,12.93549445,134.36,134.26,0.25]
[1642579543882,1.76719445,134.36,134.26,0.25]
[1642579546284,12.93569445,134.36,134.26,0.25]
[1642579546685,11.1685,134.36,134.26,0.25]
[1642579546913,38.9659773,134.35,134.26,0.25]
[1642579547290,12.93569445,134.36,134.26,0.25]
[1642579548193,12.93569445,134.36,134.26,1.8595416]
[1642579548393,12.93569445,134.36,134.28,42.49458759]
[1642579548594,12.93569445,134.36,134.29,6.0]
[1642579548794,11.1685,134.36,134.29,80.28]
[1642579548995,57.49211532,134.37,134.29,80.28]
[1642579549196,1.76719445,134.36,134.29,80.28]
[1642579549394,1.76719445,134.36,134.29,6.25]
[1642579549794,1.76719445,134.36,134.29,0.25]
[1642579549995,1.76719445,134.35,134.29,0.25]
[1642579550194,1.76719445,134.35,134.28,0.25]
[1642579550600,26.79354362,134.34,134.28,0.25]
[1642579551698,28.56073807,134.34,134.28,0.25]
[1642579551902,1.76719445,134.34,134.28,0.25]
[1642579552103,1.76719445,134.35,134.28,0.25]
[1642579552901,50.03140404,134.35,134.28,0.25]
[1642579553703,50.03140404,134.35,134.27,54.85535485]
[1642579553904,1.76719445,134.34,134.27,54.85535485]
[1642579554304,1.76719445,134.34,134.27,6.0]
[1642579554719,1.76719445,134.33,134.27,6.0]
[1642579555219,1.76719445,134.33,134.28,0.25]
[1642579556721,1.76719445,134.34,134.28,0.25]
[1642579557323,1.76719445,134.33,134.28,0.25]
[1642579557524,1.76719445,134.33,134.27,0.25]
[1642579557823,1.76719445,134.33,134.23,74.28]
[1642579558023,1.76719445,134.32,134.23,80.28]
[1642579558226,24.85384935,134.32,134.24,121.61803806]
[1642579558623,23.0866549,134.32,134.25,0.25]
[1642579558824,24.85384935,134.32,134.25,0.25]
[1642579560424,24.85384935,134.32,134.21,98.9889]
[1642579560628,9.229,134.31,134.16,50.34698507]
[1642579560828,9.229,134.31,134.16,48.56605776]
[1642579560829,1.76719445,134.3,134.16,48.56605776]
[1642579561025,1.76719445,134.3,134.14,2.10355776]
[1642579561026,10.74619445,134.29,134.14,2.10355776]
[1642579561226,24.96399445,134.28,134.14,2.10355776]
[1642579561426,4.74719445,134.27,134.15,42.29193096]
[1642579561628,11.1801,134.23,134.15,42.29193096]
[1642579562027,11.1801,134.23,134.16,0.25]
[1642579563228,11.1801,134.23,134.15,42.29193096]
[1642579563431,14.1601,134.23,134.12,2.10355776]
[1642579563727,11.1813,134.21,134.11,26.58175776]
[1642579564129,11.1813,134.21,134.11,24.4782]
[1642579564328,40.8461647,134.19,134.11,24.4782]
[1642579565127,52.0289647,134.19,134.11,24.4782]
[1642579565329,6.0,134.18,134.11,24.4782]
[1642579565529,6.0,134.18,134.1,24.6553]
[1642579565530,6.0,134.18,134.07,2.12355776]
[1642579565729,6.0,134.18,134.07,0.02]
[1642579565930,6.0,134.18,134.07,38.48043838]
[1642579566429,11.1841,134.17,134.07,38.48043838]
[1642579567030,6.0,134.18,134.07,38.48043838]
[1642579567229,6.0,134.18,134.08,80.28]
[1642579567633,23.9063,134.19,134.08,80.54]
[1642579567832,35.0889,134.19,134.08,91.7231]
[1642579568130,35.0889,134.19,134.08,85.7231]
[1642579568333,74.62550411,134.19,134.08,85.7231]
[1642579568733,35.0889,134.19,134.08,85.7231]
[1642579569731,77.35081379,134.19,134.08,85.7231]
[1642579569931,77.35081379,134.19,134.08,11.6931]
[1642579570133,77.35081379,134.19,134.07,85.16593838]
[1642579570833,77.35081379,134.19,134.07,85.42593838]
[1642579571032,6.0,134.18,134.07,85.42593838]
[1642579571235,6.0,134.18,134.08,0.25]
[1642579571434,11.1865,134.15,134.07,85.42593838]
[1642579571638,6.0,134.18,134.07,85.42593838]
[1642579571833,23.9063,134.19,134.08,80.03]
[1642579572334,23.9063,134.19,134.08,80.29]
[1642579572534,49.39967761,134.18,134.08,6.26]
[1642579572735,6.0,134.18,134.09,0.25]
[1642579572936,23.9063,134.19,134.09,0.25]
[1642579573138,1.36271237,134.22,134.1,1.6095416]
[1642579573337,1.36271237,134.22,134.1,1.8695416]
[1642579573538,1.36271237,134.22,134.11,6.25]
[1642579573740,1.36271237,134.22,134.12,67.01611482]
[1642579574138,1.36271237,134.22,134.13,0.25]
[1642579575540,12.54291237,134.22,134.13,11.4305]
[1642579575740,12.54291237,134.22,134.13,11.6905]
[1642579578246,1.36271237,134.22,134.13,11.6905]
[1642579578644,1.36271237,134.22,134.13,11.4405]
[1642579578848,4.34371237,134.22,134.13,11.4405]
[1642579579045,1.36271237,134.22,134.13,11.4405]
[1642579579444,1.36271237,134.22,134.14,6.0]
[1642579579644,1.36271237,134.22,134.16,11.1775]
[1642579580046,1.36271237,134.22,134.17,37.64622499]
[1642579580246,1.36271237,134.22,134.18,0.25]
[1642579580645,1.36271237,134.22,134.17,37.39622499]
[1642579580846,1.36271237,134.22,134.18,0.25]
[1642579581748,1.36271237,134.22,134.17,37.39622499]
[1642579582950,1.36271237,134.22,134.17,48.57412499]
[1642579583151,1.36271237,134.22,134.18,0.25]
[1642579584551,1.36271237,134.22,134.17,48.57412499]
[1642579585351,2.98,134.26,134.18,74.03]
[1642579585554,4.74719445,134.28,134.21,11.1747]
[1642579585753,6.27125832,134.3,134.21,11.1747]
[1642579585953,1.52506387,134.3,134.22,0.25]
[1642579586153,1.52506387,134.3,134.2,80.28]
[1642579586657,1.52506387,134.3,134.2,117.5215]
[1642579587056,1.52506387,134.3,134.2,117.7815]
[1642579587454,1.52506387,134.3,134.22,11.1734]
[1642579587653,1.52506387,134.3,134.23,47.58903882]
[1642579587854,1.52506387,134.3,134.23,47.83903882]
[1642579588054,2.979,134.29,134.21,23.2784]
[1642579588255,2.979,134.29,134.18,60.6671]
[1642579588453,2.979,134.29,134.2,11.1758]
[1642579588654,2.979,134.29,134.18,23.4193]
[1642579589158,23.47022906,134.28,134.19,43.37406709]
[1642579589456,4.74619445,134.29,134.19,43.37406709]
[1642579589654,6.0,134.28,134.2,0.25]
[1642579590156,2.979,134.27,134.2,0.25]
[1642579590554,14.1555,134.27,134.2,0.25]
[1642579591459,2.979,134.27,134.2,0.25]
[1642579591760,6.0,134.28,134.2,11.4259]
[1642579592359,38.48841381,134.27,134.2,0.25]
[1642579592559,38.48841381,134.27,134.19,43.37406709]
[1642579593360,38.48841381,134.27,134.16,11.1791]
[1642579593361,49.66451381,134.27,134.16,11.1791]
[1642579593558,6.0,134.26,134.16,11.1791]
[1642579593758,3.23,134.25,134.17,0.25]
[1642579593959,0.25,134.25,134.17,0.25]
[1642579594161,32.5977,134.26,134.17,0.25]
[1642579594763,29.6177,134.26,134.17,0.25]